fUST/lending_fUST_20250914
["ID","MTS","AMOUNT","RATE_DAILY","PERIOD"]
[385449964,1757857844175,-480.0,0.00022191,3]
[385449965,1757857844184,-480.0,0.00022191,3]
[385449966,1757857844193,-480.0,0.00022191,3]
[385449967,1757857844202,-480.0,0.00022191,3]
[385449968,1757857844211,-480.0,0.00022191,3]
[385449969,1757857844221,-550.53342202,0.00022191,3]
[385449970,1757857844358,-480.0,0.00022191,3]
[385449971,1757857844369,-480.0,0.00022191,3]
[385449972,1757857844379,-493.0,0.00022191,3]
[385449973,1757857844389,-430.64252563,0.00022191,3]
[385449974,1757857844398,-480.0,0.00022191,3]
[385449975,1757857844408,-480.0,0.00022191,3]
[385449976,1757857844418,-998.47,0.00022191,3]
[385449977,1757857844428,-480.0,0.00022191,3]
[385449978,1757857844438,-480.0,0.00022191,3]
[385449979,1757857844447,-480.0,0.00022191,3]
[385449980,1757857844456,-480.0,0.00022191,3]
[385449981,1757857844465,-480.0,0.00022191,3]
[385449982,1757857844475,-584.27,0.00022191,3]
[385449983,1757857844484,-967.84,0.00022191,3]
[385449984,1757857844494,-480.0,0.00022191,3]
[385449985,1757857844504,-480.0,0.00022191,3]
[385449986,1757857844513,-570.36,0.00022191,3]
[385449987,1757857844522,-480.0,0.00022191,3]
[385449988,1757857844531,-1377.17,0.00022191,3]
[385449989,1757857844540,-503.8,0.00022191,3]
[385449990,1757857844549,-480.0,0.00022191,3]
[385449991,1757857844558,-1295.13,0.00022191,3]
[385449992,1757857844568,-737.2,0.00022191,3]
[385449993,1757857844577,-480.0,0.00022191,3]
[385449994,1757857844588,-545.19,0.00022191,3]
[385449995,1757857844597,-480.0,0.00022191,3]
[385449996,1757857844608,-1293.77,0.00022191,3]
[385449997,1757857844617,-151.0,0.00022191,7]
[385449998,1757857844627,-480.0,0.00022191,3]
[385450000,1757857844636,-1285.73,0.00022191,3]
[385450002,1757857844646,-480.0,0.00022191,3]
[385450003,1757857844656,-495.83,0.00022191,3]
[385450004,1757857844665,-480.0,0.00022191,3]
[385450005,1757857844675,-480.0,0.00022191,3]
[385450006,1757857844684,-494.66,0.00022191,3]
[385450007,1757857844694,-480.0,0.00022191,3]
[385450008,1757857844703,-289.52052967,0.00022191,3]
[385450009,1757857844713,-297.77655345,0.00022191,3]
[385450010,1757857844723,-480.0,0.00022191,3]
[385450011,1757857844732,-451.89421521,0.00022191,3]
[385450012,1757857844742,-167.88033154,0.00022191,3]
[385450013,1757857844752,-893.42,0.00022191,3]
[385450014,1757857844762,-480.0,0.00022191,3]
[385450015,1757857844771,-480.0,0.00022191,3]
[385450016,1757857844780,-877.34,0.00022191,3]
[385450017,1757857844789,-1023.87,0.00022191,3]
[385450018,1757857844799,-480.0,0.00022191,3]
[385450019,1757857844808,-480.0,0.00022191,3]
[385450020,1757857844818,-803.93,0.00022191,3]
[385450021,1757857844828,-971.03,0.00022191,3]
[385450022,1757857844836,-178.38,0.00022191,3]
[385450024,1757857844846,-474.75949799,0.00022191,3]
[385450025,1757857844856,-755.24,0.00022191,3]
[385450026,1757857844866,-480.0,0.00022191,3]
[385450027,1757857844875,-431.74069649,0.00022191,3]
[385450028,1757857844884,-151.0,0.00022191,7]
[385450029,1757857844893,-666.04,0.00022191,3]
[385450030,1757857844902,-480.0,0.00022191,3]
[385450031,1757857844912,-151.0,0.00022191,7]
[385450032,1757857844921,-151.0,0.00022191,7]
[385450033,1757857844930,-151.0,0.00022191,7]
[385450034,1757857844940,-604.81122992,0.00022191,3]
[385450035,1757857844949,-151.0,0.00022191,7]
[385450036,1757857844958,-313.90717,0.00022191,3]
[385450037,1757857844968,-702.38,0.00022191,3]
[385450038,1757857844977,-454.6320539,0.00022191,3]
[385450039,1757857844986,-999.43,0.00022191,3]
[385450040,1757857844995,-151.0,0.00022191,7]
[385450041,1757857845004,-2920.87,0.00022191,3]
[385450042,1757857845014,-158.140728,0.00022191,7]
[385450043,1757857845023,-2294.91,0.00022191,3]
[385450044,1757857845032,-480.0,0.00022191,3]
[385450045,1757857845042,-989.18,0.00022191,3]
[385450046,1757857845051,-480.0,0.00022191,3]
[385450047,1757857845061,-1372.61,0.00022191,3]
[385450048,1757857845069,-151.0,0.00022191,7]
[385450049,1757857845079,-480.0,0.00022191,3]
[385450051,1757857845088,-480.0,0.00022191,3]
[385450052,1757857845098,-192.89126168,0.00022191,3]
[385450054,1757857845107,-1338.94,0.00022191,3]
[385450055,1757857845116,-189.73023821,0.00022191,3]
[385450056,1757857845125,-950.51,0.00022191,3]
[385450057,1757857845135,-1214.5,0.00022191,3]
[385450058,1757857845144,-151.0,0.00022191,7]
[385450059,1757857845153,-5730.62,0.00022191,3]
[385450060,1757857845163,-1106.26,0.00022191,3]
[385450061,1757857845173,-480.0,0.00022191,3]
[385450062,1757857845182,-2920.8,0.00022191,3]
[385450063,1757857845191,-505.91065217,0.00022191,3]
[385450065,1757857845200,-480.0,0.00022191,3]
[385450066,1757857845209,-151.0,0.00022191,7]
[385450067,1757857845219,-439.4470759,0.00022191,3]
[385450068,1757857845228,-480.0,0.00022191,3]
[385450069,1757857845237,-480.0,0.00022191,3]
[385450070,1757857845246,-504.19,0.00022191,3]
[385450071,1757857845256,-697.54,0.00022191,3]
[385450072,1757857845266,-1670.28,0.00022191,3]
[385450073,1757857845275,-3517.84,0.00022191,3]
[385450074,1757857845285,-683.94,0.00022191,3]
[385450075,1757857845295,-417.15472785,0.00022191,3]
[385450076,1757857845305,-480.0,0.00022191,3]
[385450077,1757857845315,-332.72,0.00022191,2]
[385450078,1757857845324,-648.34,0.00022191,3]
[385450079,1757857845334,-701.61,0.00022191,3]
[385450080,1757857845343,-1384.27,0.00022191,3]
[385450081,1757857845353,-480.0,0.00022191,3]
[385450083,1757857845363,-657.47,0.00022191,3]
[385450085,1757857845373,-1571.38,0.00022191,3]
[385450087,1757857845382,-992.3,0.00022191,3]
[385450089,1757857845391,-570.84,0.00022191,3]
[385450091,1757857845401,-26420.12,0.00022191,3]
[385450093,1757857845410,-160.0,0.00022191,3]
[385450095,1757857845419,-890.07,0.00022191,3]
[385450097,1757857845428,-503.1,0.00022191,3]
[385450098,1757857845438,-1594.03,0.00022191,3]
[385450099,1757857845447,-549.34,0.00022191,3]
[385450100,1757857845457,-2131.31,0.00022191,3]
[385450101,1757857845467,-803.63,0.00022191,3]
[385450102,1757857845476,-7663.86,0.00022191,3]
[385450103,1757857845486,-480.0,0.00022191,3]
[385450104,1757857845495,-480.0,0.00022191,3]
[385450105,1757857845504,-1133.27,0.00022191,3]
[385450107,1757857845514,-480.0,0.00022191,3]
[385450108,1757857845524,-151.0,0.00022191,7]
[385450109,1757857845534,-151.0,0.00022191,7]
[385450110,1757857845543,-3356.71,0.00022191,3]
[385450111,1757857845552,-569.26,0.00022191,3]
[385450112,1757857845562,-1738.44,0.00022191,3]
[385450113,1757857845572,-1858.41,0.00022191,3]
[385450114,1757857845582,-1280.08,0.00022191,3]
[385450115,1757857845591,-2984.12,0.00022191,3]
[385450116,1757857845600,-3260.95,0.00022191,3]
[385450117,1757857845610,-1187.58,0.00022191,3]
[385450118,1757857845620,-480.0,0.00022191,3]
[385450119,1757857845630,-480.0,0.00022191,3]
[385450120,1757857845639,-883.24,0.00022191,3]
[385450121,1757857845649,-892.69,0.00022191,3]
[385450122,1757857845659,-1710.8,0.00022191,3]
[385450123,1757857845669,-480.0,0.00022191,3]
[385450124,1757857845679,-885.24,0.00022191,3]
[385450125,1757857845689,-151.0,0.00022191,7]
[385450126,1757857845699,-1765.06,0.00022191,3]
[385450127,1757857845708,-480.0,0.00022191,3]
[385450128,1757857845718,-6401.54,0.00022191,3]
[385450129,1757857845728,-2520.67,0.00022191,3]
[385450130,1757857845738,-4184.04,0.00022191,3]
[385450131,1757857845747,-480.0,0.00022191,3]
[385450132,1757857845758,-480.0,0.00022191,3]
[385450133,1757857845767,-819.51,0.00022191,3]
[385450134,1757857845776,-3056.45,0.00022191,3]
[385450135,1757857845786,-480.0,0.00022191,3]
[385450136,1757857845796,-480.0,0.00022191,3]
[385450137,1757857845806,-4399.81,0.00022191,3]
[385450138,1757857845815,-480.0,0.00022191,3]
[385450139,1757857845825,-500.0,0.00022191,3]
[385450140,1757857845835,-989.51,0.00022191,3]
[385450141,1757857845845,-729.58,0.00022191,3]
[385450142,1757857845854,-480.0,0.00022191,3]
[385450143,1757857845864,-1706.72,0.00022191,3]
[385450144,1757857845874,-289.67143945,0.00022191,3]
[385450145,1757857845884,-623.56,0.00022191,3]
[385450146,1757857845894,-1403.6,0.00022191,3]
[385450147,1757857845904,-765.22,0.00022191,3]
[385450148,1757857845913,-534.35,0.00022191,3]
[385450149,1757857845924,-151.0,0.00022191,7]
[385450150,1757857845933,-480.0,0.00022191,3]
[385450151,1757857845942,-151.0,0.00022191,7]
[385450152,1757857845951,-3394.69,0.00022191,3]
[385450153,1757857845961,-592.28956643,0.00022191,3]
[385450154,1757857845970,-151.0,0.00022191,7]
[385450155,1757857845979,-543.6117831,0.00022191,3]
[385450156,1757857845989,-480.0,0.00022191,3]
[385450157,1757857845999,-15224.06,0.00022191,3]
[385450158,1757857846008,-2866.27,0.00022191,3]
[385450159,1757857846018,-2103.55,0.00022191,3]
[385450161,1757857846028,-480.0,0.00022191,3]
[385450164,1757857846038,-151.0,0.00022191,7]
[385450166,1757857846048,-1380.04,0.00022191,3]
[385450167,1757857846057,-480.0,0.00022191,2]
[385450168,1757857846067,-480.0,0.00022191,3]
[385450169,1757857846077,-4152.55,0.00022191,3]
[385450170,1757857846087,-1075.89,0.00022191,3]
[385450171,1757857846096,-469.0565227,0.00022192,2]
[385450172,1757857846107,-208.0,0.00022298,2]
[385450173,1757857846117,-1800.75407798,0.00022313,2]
[385450174,1757857846126,-10590.30103238,0.00022353,2]
[385450175,1757857846136,-300.0,0.00022354,20]
[385450176,1757857846146,-300.0,0.00022354,20]
[385450178,1757857846156,-300.0,0.00022354,20]
[385450180,1757857846166,-300.0,0.00022354,20]
[385450182,1757857846175,-300.0,0.00022354,20]
[385450184,1757857846185,-300.0,0.00022354,20]
[385450185,1757857846195,-300.0,0.00022354,20]
[385450186,1757857846205,-300.0,0.00022354,20]
[385450187,1757857846214,-300.0,0.00022354,20]
[385450188,1757857846223,-300.0,0.00022354,20]
[385450189,1757857846233,-300.0,0.00022354,20]
[385450190,1757857846242,-300.0,0.00022354,20]
[385450191,1757857846251,-300.0,0.00022354,20]
[385450192,1757857846261,-300.0,0.00022354,20]
[385450193,1757857846271,-300.0,0.00022354,20]
[385450194,1757857846280,-600.0,0.00022354,20]
[385450195,1757857846290,-1000.0,0.00022365,2]
[385450196,1757857846299,-208.0,0.00022365,2]
[385450197,1757857846312,-208.0,0.0002239,2]
[385450198,1757857846322,-256.37,0.00022398,2]
[385450199,1757857846332,-1403.60900327,0.00022398,2]
[385450200,1757857846345,-184.283136,0.000224,2]
[385450201,1757857846355,-151.0,0.000224,8]
[385450202,1757857846364,-976.0,0.0002241,2]
[385450203,1757857846374,-634.0,0.0002241,2]
[385450204,1757857846383,-2156.0,0.0002241,2]
[385450205,1757857846393,-150.0,0.0002241,2]
[385450206,1757857846402,-208.0,0.00022414,2]
[385450207,1757857846412,-703.0,0.00022464,2]
[385450208,1757857846422,-480.0,0.00022465,2]
[385450209,1757857846438,-480.0,0.00022465,3]
[385450210,1757857846452,-480.0,0.00022465,3]
[385450211,1757857846462,-515.89,0.00022465,3]
[385450212,1757857846471,-756.76,0.00022465,3]
[385450213,1757857846481,-484.33910595,0.00022465,3]
[385450214,1757857846490,-480.0,0.00022465,3]
[385450215,1757857846500,-480.0,0.00022465,3]
[385450216,1757857846509,-480.0,0.00022465,3]
[385450217,1757857846518,-990.85,0.00022465,3]
[385450218,1757857846528,-829.96,0.00022465,3]
[385450219,1757857846537,-104.83644283,0.00022465,3]
[385450220,1757857846888,-160.0,0.00021834,2]
[385450221,1757857846898,-1288.26,0.00021917,2]
[385450222,1757857846907,-1288.26,0.00022191,3]
[385450223,1757857846917,-375.16355717,0.00022465,3]
[385450224,1757857846927,-480.0,0.00022465,3]
[385450225,1757857846936,-480.0,0.00022465,3]
[385450226,1757857846946,-617.73,0.00022465,3]
[385450227,1757857846955,-600.30406177,0.00022465,3]
[385450228,1757857846965,-480.0,0.00022465,3]
[385450229,1757857846974,-480.0,0.00022465,3]
[385450230,1757857846984,-1212.15,0.00022465,3]
[385450231,1757857846993,-507.98928696,0.00022465,3]
[385450232,1757857847002,-768.06,0.00022465,3]
[385450233,1757857847011,-480.0,0.00022465,3]
[385450234,1757857847021,-480.0,0.00022465,3]
[385450235,1757857847168,-480.0,0.00022465,3]
[385450236,1757857847179,-517.57,0.00022465,3]
[385450237,1757857847188,-480.0,0.00022465,3]
[385450238,1757857847197,-480.0,0.00022465,3]
[385450239,1757857847207,-967.47,0.00022465,3]
[385450240,1757857847216,-480.0,0.00022465,3]
[385450241,1757857847225,-681.51,0.00022465,3]
[385450242,1757857847235,-1259.75,0.00022465,3]
[385450243,1757857847244,-480.0,0.00022465,3]
[385450244,1757857847253,-480.0,0.00022465,3]
[385450245,1757857847263,-831.05,0.00022465,3]
[385450246,1757857847272,-480.0,0.00022465,3]
[385450247,1757857847281,-480.0,0.00022465,3]
[385450248,1757857847290,-480.0,0.00022465,3]
[385450249,1757857847299,-496.28041285,0.00022465,3]
[385450250,1757857847309,-151.0,0.00022465,7]
[385450251,1757857847318,-480.0,0.00022465,3]
[385450252,1757857847327,-151.0,0.00022465,7]
[385450253,1757857847336,-480.0,0.00022465,3]
[385450254,1757857847345,-480.0,0.00022465,3]
[385450255,1757857847354,-480.0,0.00022465,3]
[385450256,1757857847364,-489.5,0.00022465,3]
[385450257,1757857847373,-2189.21,0.00022465,3]
[385450258,1757857847382,-500.0,0.00022465,3]
[385450259,1757857847392,-480.0,0.00022465,3]
[385450260,1757857847402,-1074.02,0.00022465,3]
[385450261,1757857847411,-480.0,0.00022465,3]
[385450262,1757857847421,-480.0,0.00022465,3]
[385450263,1757857847430,-480.0,0.00022465,3]
[385450264,1757857847439,-1090.9,0.00022465,3]
[385450265,1757857847448,-866.76,0.00022465,3]
[385450266,1757857847458,-480.0,0.00022465,3]
[385450267,1757857847467,-830.23,0.00022465,3]
[385450268,1757857847475,-480.0,0.00022465,3]
[385450269,1757857847485,-480.0,0.00022465,3]
[385450270,1757857847494,-480.0,0.00022465,3]
[385450271,1757857847503,-480.0,0.00022465,3]
[385450272,1757857847512,-480.0,0.00022465,3]
[385450273,1757857847523,-480.0,0.00022465,3]
[385450274,1757857847532,-480.0,0.00022465,3]
[385450275,1757857847541,-152.012383,0.00022465,7]
[385450276,1757857847550,-480.0,0.00022465,3]
[385450277,1757857847559,-480.0,0.00022465,3]
[385450278,1757857847568,-480.0,0.00022465,3]
[385450279,1757857847577,-493.0,0.00022465,3]
[385450280,1757857847586,-480.0,0.00022465,3]
[385450281,1757857847595,-480.0,0.00022465,3]
[385450282,1757857847604,-998.47,0.00022465,3]
[385450283,1757857847614,-480.0,0.00022465,3]
[385450284,1757857847623,-480.0,0.00022465,3]
[385450285,1757857847633,-480.0,0.00022465,3]
[385450286,1757857847643,-484.56390526,0.00022465,3]
[385450287,1757857847652,-480.0,0.00022465,3]
[385450288,1757857847661,-584.27,0.00022465,3]
[385450289,1757857847670,-967.84,0.00022465,3]
[385450290,1757857847680,-480.0,0.00022465,3]
[385450291,1757857847689,-480.0,0.00022465,3]
[385450292,1757857847698,-570.36,0.00022465,3]
[385450293,1757857847707,-480.0,0.00022465,3]
[385450294,1757857847716,-1377.17,0.00022465,3]
[385450295,1757857847727,-503.8,0.00022465,3]
[385450296,1757857847736,-480.0,0.00022465,3]
[385450297,1757857847745,-1295.13,0.00022465,3]
[385450298,1757857847754,-737.2,0.00022465,3]
[385450299,1757857847764,-194.00700206,0.00022465,3]
[385450300,1757857847773,-545.19,0.00022465,3]
[385450301,1757857847783,-480.0,0.00022465,3]
[385450302,1757857847792,-1293.77,0.00022465,3]
[385450303,1757857847801,-1285.73,0.00022465,3]
[385450304,1757857847811,-480.0,0.00022465,3]
[385450305,1757857847820,-495.83,0.00022465,3]
[385450306,1757857847830,-480.0,0.00022465,3]
[385450307,1757857847839,-480.0,0.00022465,3]
[385450308,1757857847849,-494.66,0.00022465,3]
[385450309,1757857847858,-480.0,0.00022465,3]
[385450310,1757857847868,-480.0,0.00022465,3]
[385450311,1757857847878,-893.42,0.00022465,3]
[385450312,1757857847888,-480.0,0.00022465,3]
[385450313,1757857847897,-480.0,0.00022465,3]
[385450314,1757857847907,-877.34,0.00022465,3]
[385450315,1757857847917,-1023.87,0.00022465,3]
[385450316,1757857847926,-548.44167581,0.00022465,3]
[385450317,1757857847935,-803.93,0.00022465,3]
[385450318,1757857847953,-480.0,0.00022465,3]
[385450319,1757857847987,-971.03,0.00022465,3]
[385450320,1757857847997,-755.24,0.00022465,3]
[385450321,1757857848011,-666.04,0.00022465,3]
[385450322,1757857848032,-480.0,0.00022465,3]
[385450323,1757857848042,-702.38,0.00022465,3]
[385450324,1757857848054,-999.43,0.00022465,3]
[385450325,1757857848063,-2920.87,0.00022465,3]
[385450326,1757857848072,-151.0,0.00022465,7]
[385450327,1757857848082,-480.0,0.00022465,3]
[385450328,1757857848091,-989.18,0.00022465,3]
[385450329,1757857848101,-1372.61,0.00022465,3]
[385450330,1757857848111,-480.0,0.00022465,3]
[385450331,1757857848120,-1338.94,0.00022465,3]
[385450332,1757857848130,-950.51,0.00022465,3]
[385450333,1757857848139,-1214.5,0.00022465,3]
[385450334,1757857848148,-5730.62,0.00022465,3]
[385450335,1757857848158,-1106.26,0.00022465,3]
[385450336,1757857848167,-480.0,0.00022465,3]
[385450337,1757857848177,-2920.8,0.00022465,3]
[385450338,1757857848186,-480.0,0.00022465,3]
[385450339,1757857848195,-480.0,0.00022465,3]
[385450340,1757857848206,-504.19,0.00022465,3]
[385450341,1757857848215,-697.54,0.00022465,3]
[385450342,1757857848224,-1670.28,0.00022465,3]
[385450343,1757857848234,-3517.84,0.00022465,3]
[385450344,1757857848243,-683.94,0.00022465,3]
[385450345,1757857848253,-332.72,0.00022465,2]
[385450346,1757857848262,-648.34,0.00022465,3]
[385450347,1757857848271,-701.61,0.00022465,3]
[385450348,1757857848280,-1384.27,0.00022465,3]
[385450349,1757857848289,-480.0,0.00022465,3]
[385450350,1757857848299,-657.47,0.00022465,3]
[385450351,1757857848308,-1571.38,0.00022465,3]
[385450352,1757857848318,-992.3,0.00022465,3]
[385450353,1757857848328,-570.84,0.00022465,3]
[385450354,1757857848341,-26420.12,0.00022465,3]
[385450355,1757857848351,-890.07,0.00022465,3]
[385450356,1757857848362,-503.1,0.00022465,3]
[385450357,1757857848372,-1594.03,0.00022465,3]
[385450358,1757857848382,-549.34,0.00022465,3]
[385450359,1757857848392,-2131.31,0.00022465,3]
[385450360,1757857848401,-803.63,0.00022465,3]
[385450361,1757857848412,-7663.86,0.00022465,3]
[385450362,1757857848422,-480.0,0.00022465,3]
[385450363,1757857848431,-480.0,0.00022465,3]
[385450364,1757857848440,-1133.27,0.00022465,3]
[385450365,1757857848450,-480.0,0.00022465,3]
[385450366,1757857848460,-151.0,0.00022465,7]
[385450367,1757857848469,-300.333731,0.00022465,7]
[385450368,1757857848479,-3356.71,0.00022465,3]
[385450369,1757857848488,-569.26,0.00022465,3]
[385450370,1757857848497,-1738.44,0.00022465,3]
[385450371,1757857848507,-1858.41,0.00022465,3]
[385450372,1757857848516,-1280.08,0.00022465,3]
[385450373,1757857848526,-2984.12,0.00022465,3]
[385450374,1757857848535,-3260.95,0.00022465,3]
[385450375,1757857848544,-1187.58,0.00022465,3]
[385450376,1757857848553,-480.0,0.00022465,3]
[385450377,1757857848562,-480.0,0.00022465,3]
[385450378,1757857848571,-883.24,0.00022465,3]
[385450379,1757857848580,-892.69,0.00022465,3]
[385450380,1757857848589,-480.0,0.00022465,3]
[385450381,1757857848598,-1710.8,0.00022465,3]
[385450382,1757857848608,-885.24,0.00022465,3]
[385450383,1757857848617,-1765.06,0.00022465,3]
[385450384,1757857848627,-536.46166276,0.00022465,3]
[385450385,1757857848636,-6401.54,0.00022465,3]
[385450386,1757857848645,-2520.67,0.00022465,3]
[385450387,1757857848655,-4184.04,0.00022465,3]
[385450388,1757857848665,-480.0,0.00022465,3]
[385450389,1757857848674,-480.0,0.00022465,3]
[385450390,1757857848684,-819.51,0.00022465,3]
[385450391,1757857848693,-3056.45,0.00022465,3]
[385450392,1757857848703,-480.0,0.00022465,3]
[385450393,1757857848712,-4399.81,0.00022465,3]
[385450394,1757857848721,-480.0,0.00022465,3]
[385450395,1757857848731,-480.0,0.00022465,3]
[385450396,1757857848740,-500.0,0.00022465,3]
[385450397,1757857848750,-989.51,0.00022465,3]
[385450398,1757857848760,-729.58,0.00022465,3]
[385450399,1757857848770,-480.0,0.00022465,3]
[385450400,1757857848780,-1706.72,0.00022465,3]
[385450401,1757857848790,-623.56,0.00022465,3]
[385450402,1757857848799,-1403.6,0.00022465,3]
[385450403,1757857848809,-765.22,0.00022465,3]
[385450404,1757857848818,-534.35,0.00022465,3]
[385450405,1757857848827,-151.0,0.00022465,7]
[385450406,1757857848838,-480.0,0.00022465,3]
[385450407,1757857848847,-179.629388,0.00022465,7]
[385450408,1757857848857,-3394.69,0.00022465,3]
[385450409,1757857848868,-167.997511,0.00022465,7]
[385450410,1757857848877,-480.0,0.00022465,3]
[385450411,1757857848886,-15224.06,0.00022465,3]
[385450412,1757857848896,-2866.27,0.00022465,3]
[385450413,1757857848905,-2103.55,0.00022465,3]
[385450414,1757857848915,-480.0,0.00022465,3]
[385450415,1757857848925,-151.0,0.00022465,7]
[385450416,1757857848935,-1380.04,0.00022465,3]
[385450417,1757857848944,-480.0,0.00022465,2]
[385450418,1757857848955,-480.0,0.00022465,3]
[385450419,1757857848964,-1075.89,0.00022465,3]
[385450420,1757857848974,-4152.55,0.00022465,3]
[385450421,1757857848983,-1288.26,0.00022465,3]
[385450422,1757857848992,-1500.0,0.00022468,2]
[385450423,1757857849001,-1039.24311429,0.00022468,2]
[385450424,1757857849011,-1500.0,0.00022468,2]
[385450425,1757857849020,-1500.0,0.00022468,2]
[385450426,1757857849030,-472.21422934,0.00022468,2]
[385450427,1757857849039,-1500.0,0.00022468,2]
[385450428,1757857849049,-1500.0,0.00022468,2]
[385450429,1757857849059,-1500.0,0.00022468,2]
[385450430,1757857849068,-1000.0,0.00022521,2]
[385450431,1757857849078,-1000.0,0.00022521,2]
[385450432,1757857849087,-1000.0,0.00022521,2]
[385450433,1757857849096,-1000.0,0.00022521,2]
[385450434,1757857849106,-1000.0,0.00022521,2]
[385450435,1757857849115,-541.82112499,0.00022521,2]
[385450436,1757857849124,-1002.94063728,0.00022521,2]
[385450437,1757857849134,-1000.0,0.00022521,2]
[385450438,1757857849143,-1000.0,0.00022521,2]
[385450439,1757857849152,-1000.0,0.00022521,2]
[385450440,1757857849162,-1000.0,0.00022521,2]
[385450441,1757857849171,-1000.0,0.00022521,2]
[385450442,1757857849181,-319.72775656,0.00022521,2]
[385450443,1757857849190,-500.0,0.00022521,2]
[385450444,1757857849199,-501.78976463,0.00022521,2]
[385450445,1757857849209,-502.42639181,0.00022521,2]
[385450446,1757857849218,-1004.14128278,0.00022521,2]
[385450447,1757857849228,-502.28732597,0.00022521,2]
[385450448,1757857849237,-502.04640876,0.00022521,2]
[385450449,1757857849247,-1000.0,0.00022521,2]
[385450450,1757857849256,-1000.0,0.00022521,2]
[385450451,1757857849265,-507.38026012,0.00022521,2]
[385450452,1757857849275,-500.0,0.00022521,2]
[385450453,1757857849284,-163.8894747,0.00022521,2]
[385450454,1757857849294,-1071.08596217,0.00022521,2]
[385450455,1757857849303,-1000.0,0.00022521,2]
[385450456,1757857849312,-500.0,0.00022521,2]
[385450457,1757857849322,-501.64757414,0.00022521,2]
[385450458,1757857849331,-500.93384071,0.00022521,2]
[385450459,1757857849341,-1000.0,0.00022521,2]
[385450460,1757857849351,-151.0,0.00022521,7]
[385450461,1757857849360,-187.198315,0.00022521,7]
[385450462,1757857849369,-151.0,0.00022521,7]
[385450463,1757857849379,-942.0,0.00022532,2]
[385450464,1757857849388,-208.0,0.00022535,2]
[385450465,1757857849398,-208.0,0.00022591,2]
[385450466,1757857849407,-184.283136,0.000226,2]
[385450467,1757857849417,-500.0,0.00022614,2]
[385450468,1757857849426,-151.823002,0.00022614,7]
[385450469,1757857849435,-600.0,0.00022619,2]
[385450470,1757857849445,-160.0,0.00022632,2]
[385450471,1757857849454,-8489.57690655,0.00022639,2]
[385450472,1757857849463,-163.55172473,0.00022698,3]
[385450473,1757857849473,-151.0,0.000227,5]
[385450474,1757857849482,-159.24064273,0.00022721,2]
[385450475,1757857849491,-300.0,0.00022721,2]
[385450476,1757857849500,-208.0,0.00022728,2]
[385450477,1757857849510,-3537.1,0.00022734,3]
[385450478,1757857849519,-1768.56,0.00022734,3]
[385450479,1757857849528,-884.28,0.00022734,3]
[385450480,1757857849537,-442.14,0.00022734,3]
[385450481,1757857849547,-703.0,0.00022738,2]
[385450482,1757857849556,-480.0,0.00022739,2]
[385450483,1757857849565,-480.0,0.00022739,3]
[385450484,1757857849574,-480.0,0.00022739,3]
[385450485,1757857849583,-515.89,0.00022739,3]
[385450486,1757857849592,-756.76,0.00022739,3]